lending/lending_fUSD_20250917
["ID","MTS","AMOUNT","RATE_DAILY","PERIOD"]
[385868461,1758073852508,-300.471031,0.00035,7]
[385868462,1758073852518,-151.0,0.00035,7]
[385868463,1758073852527,-151.0,0.00035,7]
[385868464,1758073852536,-151.0,0.00035,7]
[385868465,1758073852545,-151.0,0.00035,7]
[385868466,1758073852555,-151.793912,0.00035,7]
[385868467,1758073852564,-151.0,0.00035,7]
[385868468,1758073852576,-151.0,0.00035,7]
[385868469,1758073852585,-151.0,0.00035,7]
[385868470,1758073852598,-151.0,0.00035,7]
[385868471,1758073852607,-237.51292,0.00035,7]
[385868472,1758073852616,-151.0,0.00035,7]
[385868473,1758073852627,-151.0,0.00035,7]
[385868474,1758073852637,-151.0,0.00035,7]
[385868475,1758073852647,-151.0,0.00035,7]
[385868476,1758073852657,-151.0,0.00035,7]
[385868477,1758073852666,-151.0,0.00035,7]
[385868478,1758073852676,-151.0,0.00035,7]
[385868479,1758073852687,-151.0,0.00035,7]
[385868480,1758073852697,-151.0,0.00035,7]
[385868481,1758073852706,-151.0,0.00035,7]
[385868482,1758073852715,-151.0,0.00035,7]
[385868483,1758073852725,-1000.0,0.00035,7]
[385868484,1758073852734,-1000.0,0.00035,7]
[385868485,1758073852744,-1000.0,0.00035,7]
[385868486,1758073852755,-158.62,0.00035,7]
[385868487,1758073852764,-2000.0,0.00035,2]
[385868488,1758073852774,-2000.0,0.00035,2]
[385868489,1758073852784,-15988.236993,0.00035,7]
[385868490,1758073852794,-1000.0,0.00035,30]
[385868491,1758073852804,-2000.0,0.00035,2]
[385868492,1758073852814,-662.43208182,0.00035,2]
[385868493,1758073852824,-2000.0,0.00035,2]
[385868494,1758073852833,-2000.0,0.00035,2]
[385868495,1758073852842,-2000.0,0.00035,2]
[385868496,1758073852851,-1074.22800921,0.00035,2]
[385868497,1758073853896,-1035.20327985,0.0003251,20]
[385868498,1758073853906,-1882.22684217,0.00032715,2]
[385868499,1758073853918,-315.07904516,0.00032715,2]
[385868506,1758074283956,878.26115754,0.0002739,120]
[385868509,1758074634888,161.66,0.00014614,2]
[385868510,1758074636319,-161.66,0.00019485,2]
[385868516,1758075031633,-161.66,0.00024357,2]
[385868517,1758075031643,-250.0,0.00024374,2]
[385868518,1758075031652,-395.838172,0.00024392,2]
[385868519,1758075031685,-2604.69114164,0.00024392,2]
[385868520,1758075031694,-2500.0,0.00024392,2]
[385868521,1758075031704,-308.48539458,0.00024428,2]
[385868522,1758075031714,-208.06295992,0.00024528,2]
[385868523,1758075031724,-2500.0,0.00024622,2]
[385868524,1758075031734,-2500.0,0.00024622,2]
[385868525,1758075031743,-2556.69708999,0.00024622,2]
[385868526,1758075031753,-300.0,0.00024899,2]
[385868527,1758075031762,-13598.75497464,0.000249,2]
[385868528,1758075031771,-4357.06712594,0.00025578,2]
[385868529,1758075031781,-213.1401216,0.00026258,2]
[385868530,1758075031791,-500.0,0.00026791,2]
[385868531,1758075031800,-2500.0,0.00026792,2]
[385868532,1758075031811,-250.0,0.00026792,2]
[385868533,1758075031820,-543.0,0.00027137,2]
[385868534,1758075031830,-7600.54872581,0.00027252,2]
[385868535,1758075031843,-627.03415411,0.00027252,2]
[385868536,1758075031855,-1570.64712008,0.00027252,2]
[385868537,1758075031865,-5000.0,0.00027252,2]
[385868538,1758075031874,-169.02,0.00027307,2]
[385868539,1758075031884,-999.99,0.00027397,2]
[385868540,1758075031893,-150.99,0.00027397,2]
[385868541,1758075031905,-151.0,0.00027464,2]
[385868542,1758075031915,-151.0,0.00027464,2]
[385868543,1758075031924,-151.0,0.00027464,2]
[385868544,1758075031934,-151.0,0.00027464,2]
[385868545,1758075031943,-161.43484294,0.00027464,2]
[385868546,1758075031953,-517.77786663,0.00027473,5]
[385868547,1758075031962,-619.46786325,0.00027473,5]
[385868548,1758075031973,-502.88935764,0.00027473,3]
[385868549,1758075031983,-500.0,0.00027473,5]
[385868550,1758075031993,-504.39157314,0.00027473,5]
[385868551,1758075032004,-328.03358287,0.0002748,2]
[385868552,1758075032013,-3630.94711571,0.0002748,2]
[385868553,1758075032023,-80376.92224129,0.00027481,2]
[385868554,1758075032035,-11031.93265544,0.00027481,2]
[385868555,1758075032050,-393.56980066,0.00027481,2]
[385868557,1758075032114,-266.76562038,0.00027481,2]
[385868559,1758075032129,-1154.76426331,0.00027481,2]
[385868738,1758075037579,-1410.98868585,0.00027481,2]
[385868739,1758075037633,-23146.42978219,0.00027481,2]
[385868740,1758075037689,-4431.55663427,0.00027481,2]
[385868741,1758075037701,-2166.37608666,0.00027481,2]
[385868742,1758075037742,-1276.42,0.00027481,2]
[385868743,1758075037754,-370.9049188,0.00027481,2]
[385868744,1758075037851,-584.5685795,0.00027481,2]
[385868894,1758075039686,-694.99999995,0.00027481,2]
[385868896,1758075039697,-313.07984501,0.00027481,2]
[385869181,1758075042859,-1116.20995005,0.00027481,2]
[385869182,1758075042871,-802.96887285,0.00027481,2]
[385869183,1758075042882,-3103.7752659,0.00027481,2]
[385869184,1758075042893,-1699.47971775,0.00027481,2]
[385869185,1758075042909,-2325.87822263,0.00027481,2]
[385869186,1758075042922,-1255.71,0.00027511,2]
[385869187,1758075042931,-153.09892783,0.000279,2]
[385869188,1758075042943,-5771.45990159,0.000279,2]
[385869189,1758075042952,-1305.73,0.00028,2]
[385869190,1758075042963,-1000.0,0.00028021,5]
[385869191,1758075042972,-863.14,0.00028205,2]
[385869192,1758075042984,-1500.0,0.00028568,5]
[385869193,1758075042995,-666.0,0.00028786,3]
[385869194,1758075043005,-5924.55882933,0.00028858,2]
[385869195,1758075043015,-1479.11126908,0.00029046,2]
[385869196,1758075043037,-350.61181361,0.00029046,2]
[385869210,1758075043742,-230.70691731,0.00029046,2]
[385869211,1758075043752,-2000.0,0.00029116,5]
[385869212,1758075043761,-562.16857419,0.00029128,18]
[385869213,1758075043771,-52643.59,0.00029219,2]
[385869214,1758075043848,-161.66,0.00029228,2]
[385869215,1758075043858,-229.53,0.00029261,2]
[385869216,1758075043867,-2500.0,0.00029664,5]
[385869217,1758075043876,-5924.55882933,0.00029816,2]
[385869218,1758075043885,-5000.0,0.00029877,2]
[385869219,1758075043895,-448.41,0.00029962,2]
[385869220,1758075043904,-1000.0,0.0003,2]
[385869221,1758075043914,-668.47,0.000302,2]
[385869222,1758075043924,-3000.0,0.00030212,5]
[385869223,1758075043934,-554.193,0.00030394,26]
[385869224,1758075043943,-15541.70684943,0.00030613,2]
[385869225,1758075043952,-250.0,0.0003064,2]
[385869226,1758075043962,-561.43,0.00030685,30]
[385869227,1758075043971,-211.0,0.00030719,2]
[385869228,1758075043981,-509.83262531,0.0003076,5]
[385869229,1758075043991,-5924.55882933,0.00030774,2]
[385869230,1758075044002,-500.0,0.000309,2]
[385869231,1758075044011,-500.0,0.000309,2]
[385869232,1758075044021,-500.0,0.000309,2]
[385869233,1758075044030,-500.0,0.000309,2]
[385869234,1758075044040,-502.0,0.000309,2]
[385869235,1758075044051,-515.95536276,0.00030915,2]
[385869236,1758075044060,-160.0,0.00030919,2]
[385869237,1758075044070,-2000.0,0.00031,2]
[385869238,1758075044080,-156.0,0.00031,120]
[385869239,1758075044089,-270.0,0.00031071,2]
[385869240,1758075044098,-1952.92,0.00031078,2]
[385869241,1758075044108,-4227.0,0.00031078,2]
[385869242,1758075044118,-232.41386661,0.00031361,2]
[385869243,1758075044128,-1190.0,0.000315,2]
[385869244,1758075044139,-18718.85642267,0.00031529,2]
[385869245,1758075044148,-502.53987835,0.000316,5]
[385869246,1758075044157,-15983.2317767,0.00031722,3]
[385869247,1758075044167,-5924.55882933,0.00031732,2]
[385869248,1758075044176,-161.0,0.000318,120]
[385869249,1758075044186,-500.0,0.00031975,2]
[385869250,1758075044195,-150.0,0.00031975,2]
[385869251,1758075044205,-2100.37,0.00031975,2]
[385869252,1758075044214,-7814.776622,0.00032,5]
[385869253,1758075044224,-6290.19477293,0.00032013,2]
[385869254,1758075044235,-164.96609605,0.00032013,15]
[385869255,1758075044244,-79916.1588833,0.00032103,3]
[385869256,1758075044254,-516.07479255,0.00032103,3]
[385869257,1758075044264,-10452.57652029,0.00032113,2]
[385869258,1758075044276,-738.0,0.00032113,2]
[385869259,1758075044477,-144625.11443035,0.00032113,2]
[385869260,1758075044488,-500.0,0.00032113,5]
[385869261,1758075044498,-2707.2,0.00032139,2]
[385869262,1758075044507,-185.85,0.00032143,2]
[385869263,1758075044516,-500.0,0.00032173,5]
[385869264,1758075044525,-500.0,0.00032173,5]
[385869265,1758075044534,-164.77267377,0.00032173,5]
[385869266,1758075044543,-500.0,0.00032173,5]
[385869267,1758075044552,-500.0,0.00032173,5]
[385869268,1758075044562,-504.99679906,0.00032173,5]
[385869269,1758075044571,-500.0,0.00032173,5]
[385869270,1758075044580,-480.57010299,0.00032173,5]
[385869271,1758075044590,-500.0,0.00032173,5]
[385869272,1758075044599,-500.0,0.00032173,5]
[385869273,1758075044608,-500.0,0.00032173,5]
[385869274,1758075044618,-500.0,0.00032173,5]
[385869275,1758075044628,-500.0,0.00032173,5]
[385869276,1758075044638,-500.0,0.00032173,5]
[385869277,1758075044647,-501.82532504,0.00032173,5]
[385869278,1758075044656,-500.0,0.00032173,5]
[385869279,1758075044666,-500.0,0.00032173,5]
[385869280,1758075044680,-500.64634544,0.00032173,5]
[385869281,1758075044689,-500.0,0.00032173,5]
[385869282,1758075044699,-408.66477123,0.00032173,5]
[385869283,1758075044708,-4519.62,0.00032227,120]
[385869284,1758075044718,-500.0,0.00032249,2]
[385869285,1758075044727,-15983.2317767,0.00032271,3]
[385869286,1758075044739,-1000.0,0.00032281,2]
[385869287,1758075044748,-31627.88,0.00032281,2]
[385869288,1758075044758,-197.92755833,0.00032444,5]
[385869289,1758075044768,-161.04532563,0.00032474,7]
[385869290,1758075044777,-150.0,0.00032474,7]
[385869291,1758075044786,-159.24604331,0.00032474,7]
[385869292,1758075044795,-162.69270903,0.00032474,7]
[385869293,1758075044805,-169.89389782,0.00032474,7]
[385869294,1758075044814,-158.27340944,0.00032474,7]
[385869295,1758075044824,-158.48506809,0.00032474,7]
[385869296,1758075044833,-163.9870296,0.00032474,7]
[385869297,1758075044842,-15983.2317767,0.00032514,3]
[385869298,1758075044852,-1513.92,0.00032515,2]
[385869299,1758075044861,-500.0,0.00032523,2]
[385869300,1758075044871,-15983.2317767,0.00032525,3]
[385869301,1758075044880,-31966.4635533,0.00032534,3]
[385869302,1758075044889,-26678.809388,0.00032534,3]
[385869303,1758075044899,-63191.4957352,0.00032544,2]
[385869304,1758075044908,-500.0,0.00032544,5]
[385869305,1758075044922,-6290.19477284,0.00032556,2]
[385869306,1758075044932,-13339.404694,0.00032563,3]
[385869307,1758075044942,-164.96609604,0.00032564,15]
[385869308,1758075044951,-508.44207023,0.00032573,5]
[385869309,1758075044961,-500.0,0.00032573,5]
[385869310,1758075044971,-160.0,0.00032601,2]
[385869311,1758075044981,-3038.83,0.00032601,2]
[385869312,1758075044992,-151.39108898,0.00032639,2]
[385869313,1758075045004,-500.0,0.00032661,5]
[385869314,1758075045013,-15983.2317767,0.0003268,3]
[385869315,1758075045023,-229.53,0.00032685,2]
[385869316,1758075045033,-4861.30024845,0.0003269,2]
[385869332,1758075045611,-150.0,0.00032249,2]
[385869334,1758075045621,-290.12029287,0.0003269,2]
[385869349,1758075046267,-500.0,0.00031975,2]
[385869350,1758075046279,-500.0,0.00032249,2]
[385869351,1758075046288,-156.30448501,0.00032523,2]
[385869352,1758075046320,-95.61866159,0.00032523,2]
[385869353,1758075046330,-211.6603384,0.00032523,2]
[385869356,1758075221545,3030.2499,0.00030137,120]
[385869362,1758075709782,160.91,0.00014481,2]
[385869363,1758075709911,160.91,0.00019308,2]
[385869366,1758076103440,161.93,0.0002581,120]
[385869373,1758076180623,46030.79547349,0.00030137,120]
[385869378,1758076231990,-456.0,0.000199,2]
[385869379,1758076232149,-234.73622565,0.000199,2]
[385869380,1758076232159,-270.74604066,0.000199,2]
[385869381,1758076232169,-300.0,0.00019918,2]
[385869382,1758076232178,-195.0,0.00019918,2]
[385869383,1758076232188,-300.0,0.00019936,2]
[385869384,1758076232197,-150.0,0.00019936,2]
[385869385,1758076232206,-2000.0,0.0001995,3]
[385869386,1758076232216,-300.0,0.0001995,2]
[385869387,1758076232226,-300.0,0.0001995,2]
[385869388,1758076232236,-195.0,0.0001995,2]
[385869389,1758076232245,-500.0,0.00019973,2]
[385869390,1758076232255,-500.0,0.00019973,2]
[385869391,1758076232264,-501.77384368,0.00019973,2]
[385869392,1758076232275,-500.0,0.00019973,2]
[385869393,1758076232284,-500.0,0.00019973,2]
[385869394,1758076232294,-500.0,0.00019973,2]
[385869395,1758076232303,-501.87115869,0.00019973,2]
[385869397,1758076232312,-390.62685159,0.00019973,2]
[385869399,1758076232321,-500.0,0.00019973,2]
[385869400,1758076232331,-152.68,0.0001999,2]
[385869402,1758076232341,-152.68,0.0001999,2]
[385869404,1758076232351,-152.68,0.0001999,2]
[385869406,1758076232360,-152.68,0.0001999,2]
[385869410,1758076232370,-152.68,0.0001999,2]
[385869413,1758076232380,-2000.0,0.00019993,3]
[385869416,1758076232390,-250.0,0.00019999,2]
[385869419,1758076232401,-1200.0,0.00019999,2]
[385869422,1758076232413,-300.0,0.00019999,2]
[385869424,1758076232423,-192.93966538,0.00019999,2]
[385869426,1758076232433,-193.18739971,0.00019999,2]
[385869427,1758076232443,-449.95942907,0.00019999,2]
[385869428,1758076232452,-24775.67143519,0.0002,2]
[385869430,1758076233305,-743.60537916,0.0002,2]
[385869436,1758076238013,-633861.75242239,0.0002,2]
[385869437,1758076238023,-109718.78752085,0.0002,2]
[385869438,1758076238032,-186.6,0.00020066,2]
[385869439,1758076238041,-1000.0,0.00020521,2]
[385869440,1758076238050,-1006.53492015,0.00020521,2]
[385869441,1758076238059,-1000.0,0.00020521,2]
[385869442,1758076238068,-1000.0,0.00020521,2]
[385869443,1758076238077,-1000.0,0.00020521,2]
[385869444,1758076238086,-266.37329492,0.00021068,2]
[385869445,1758076238095,-1500.0,0.00021068,2]
[385869446,1758076238103,-1500.0,0.00021068,2]
[385869447,1758076238113,-1500.0,0.00021068,2]
[385869448,1758076238122,-250.0,0.0002158,2]
[385869449,1758076238131,-2000.0,0.00021616,2]
[385869450,1758076238140,-2000.0,0.00021616,2]
[385869451,1758076238148,-2000.0,0.00021616,2]
[385869452,1758076238158,-420.0,0.00021777,2]
[385869453,1758076238167,-270.74604062,0.00021798,2]
[385869454,1758076238176,-1680.0,0.00021881,2]
[385869455,1758076238185,-150.73899229,0.0002189,2]
[385869456,1758076238194,-2000.0,0.0002189,3]
[385869457,1758076238203,-300.0,0.0002189,2]
[385869458,1758076238212,-150.0,0.0002189,2]
[385869460,1758076238221,-300.0,0.0002189,2]
[385869462,1758076238229,-195.0,0.0002189,2]
[385869464,1758076238238,-168.97719194,0.00021918,2]
[385869466,1758076238246,-250.0,0.00021999,2]
[385869468,1758076238255,-3585.197115,0.00022,2]
[385869470,1758076238264,-2500.0,0.00022164,2]
[385869472,1758076238273,-2500.0,0.00022164,2]
[385869473,1758076238283,-2500.0,0.00022164,2]
[385869474,1758076238292,-500.0,0.00022257,2]
[385869475,1758076238300,-183.98,0.00022619,2]
[385869476,1758076238309,-3000.0,0.00022712,2]
[385869477,1758076238319,-1230.84185477,0.00022712,2]
[385869478,1758076238328,-3000.0,0.00022712,2]
[385869479,1758076238339,-5000.0,0.00023,2]
[385869480,1758076238348,-3500.0,0.0002326,2]
[385869481,1758076238357,-372.50038519,0.0002326,2]
[385869482,1758076238367,-270.74604062,0.00023696,2]
[385869483,1758076238378,-243.0,0.00023712,2]
[385869484,1758076238388,-4000.0,0.00023808,2]
[385869485,1758076238396,-183.98,0.00023863,2]
[385869486,1758076238406,-2474.12170763,0.000239,2]
[385869487,1758076238415,-2351.0,0.00023941,2]
[385869488,1758076238425,-5000.00460933,0.00024,5]
[385869489,1758076238433,-5000.0,0.00024,2]
[385869490,1758076238442,-2500.0,0.00024128,2]
[385869491,1758076238452,-2500.0,0.00024128,2]
[385869492,1758076238461,-160.91,0.00024135,2]
[385869493,1758076238470,-4500.0,0.00024356,2]
[385869494,1758076238479,-757.19351886,0.000247,2]
[385869495,1758076238488,-500.71795316,0.00024773,2]
[385869496,1758076238497,-500.0,0.00024773,2]
[385869497,1758076238507,-500.0,0.00024773,2]
[385869498,1758076238515,-500.0,0.00024773,2]
[385869499,1758076238525,-200.0,0.00024773,2]
[385869500,1758076238535,-500.0,0.00024773,2]
[385869501,1758076238544,-559.62633819,0.00024773,2]
[385869502,1758076238553,-500.0,0.00024773,2]
[385869503,1758076238562,-500.0,0.00024773,2]
[385869504,1758076238571,-500.0,0.00024773,2]
[385869505,1758076238580,-500.0,0.00024773,2]
[385869506,1758076238590,-500.0,0.00024773,2]
[385869507,1758076238599,-394.6611452,0.00024773,2]
[385869508,1758076238609,-500.0,0.00024773,2]
[385869509,1758076238619,-500.0,0.00024773,2]
[385869510,1758076238629,-500.0,0.00024773,2]
[385869511,1758076238638,-500.0,0.00024773,2]
[385869512,1758076238648,-511.38174587,0.00024773,2]
[385869513,1758076238658,-500.0,0.00024773,2]
[385869514,1758076238667,-500.0,0.00024773,2]
[385869515,1758076238677,-500.0,0.00024773,2]
[385869516,1758076238686,-500.0,0.00024773,2]
[385869517,1758076238695,-152.48,0.0002479,2]
[385869518,1758076238704,-32099.47355963,0.00024799,2]
[385869519,1758076238712,-1479320.85602786,0.000248,2]
[385869520,1758076238721,-231880.138024,0.000248,3]
[385869521,1758076238730,-516.07479255,0.000248,3]
[385869522,1758076238739,-42089.22,0.000248,7]
[385869523,1758076238747,-1000.0,0.000248,2]
[385869524,1758076238761,-16562.8670017,0.0002489,3]
[385869525,1758076238770,-154.420028,0.0002489,7]
[385869526,1758076238780,-318.143665,0.0002489,7]
[385869527,1758076238789,-154.727211,0.0002489,7]
[385869528,1758076238800,-151.0,0.0002489,7]
[385869529,1758076238809,-318.143665,0.0002489,7]
[385869530,1758076238818,-1014.490006,0.0002489,7]
[385869531,1758076238828,-318.143665,0.0002489,7]
[385869532,1758076238838,-318.143665,0.0002489,7]
[385869533,1758076238848,-1014.490006,0.0002489,7]
[385869534,1758076238857,-151.0,0.0002489,7]
[385869535,1758076238866,-151.0,0.0002489,7]
[385869536,1758076238875,-1014.490006,0.0002489,7]
[385869537,1758076238884,-1014.490006,0.0002489,7]
[385869538,1758076238893,-151.0,0.0002489,7]
[385869539,1758076238902,-225.64437479,0.00024899,2]
[385869540,1758076238911,-13851.54696999,0.000249,2]
[385869541,1758076238920,-5000.0,0.00024904,2]
[385869542,1758076238930,-500.0,0.00025058,2]
[385869543,1758076238939,-2474.12170754,0.00025098,2]
[385869544,1758076239201,-808.01409516,0.000251,2]
[385869545,1758076239211,-55678.0,0.000251,2]
[385869546,1758076239222,-183.98,0.00025108,2]
[385869547,1758076239231,-327.27,0.00025205,2]
[385869548,1758076239242,-1000.0,0.00025321,2]
[385869549,1758076239251,-1000.0,0.00025321,2]
[385869550,1758076239260,-502.89436005,0.00025321,2]
[385869551,1758076239270,-731.57852114,0.00025321,2]
[385869552,1758076239279,-503.7360375,0.00025321,2]
[385869553,1758076239288,-1000.0,0.00025321,2]
[385869554,1758076239298,-1000.0,0.00025321,2]
[385869555,1758076239307,-1000.0,0.00025321,2]
[385869556,1758076239316,-953.70168942,0.00025321,2]
[385869557,1758076239326,-501.3303592,0.00025321,2]
[385869558,1758076239336,-1000.0,0.00025321,2]
[385869559,1758076239345,-501.24639017,0.00025321,2]
[385869560,1758076239355,-1004.68871115,0.00025321,2]
[385869561,1758076239364,-1000.0,0.00025321,2]
[385869562,1758076239373,-1000.0,0.00025321,2]
[385869563,1758076239382,-1000.0,0.00025321,2]
[385869564,1758076239392,-5500.0,0.00025452,2]
[385869565,1758076239402,-270.74604062,0.00025593,2]
[385869566,1758076239411,-992.83,0.00025632,2]
[385869567,1758076239420,-5513.0,0.000257,3]
[385869568,1758076239430,-400.0,0.00025732,2]
[385869569,1758076239439,-1507.25263196,0.00025868,2]
[385869570,1758076239449,-1500.0,0.00025868,2]
[385869571,1758076239458,-1503.68097202,0.00025868,2]
[385869572,1758076239468,-832.09465577,0.00025868,2]
[385869573,1758076239477,-1501.72823543,0.00025868,2]
[385869574,1758076239486,-1500.0,0.00025868,2]
[385869575,1758076239495,-1500.0,0.00025868,2]
[385869576,1758076239504,-1005.4258218,0.00025868,2]
[385869577,1758076239513,-1500.0,0.00025868,2]
[385869578,1758076239522,-4549.01873723,0.00026,2]
[385869579,1758076239533,-3292.0,0.00026194,2]
[385869580,1758076239543,-2474.12170754,0.00026297,2]
[385869581,1758076239552,-516.07479255,0.00026309,2]
[385869582,1758076239561,-213.18994792,0.00026309,2]
[385869583,1758076239571,-183.98,0.00026352,2]
[385869584,1758076239580,-5513.0,0.000264,5]
[385869585,1758076239589,-4000.0,0.0002641,4]
[385869586,1758076239599,-170.80890793,0.00026416,2]
[385869587,1758076239608,-774.13036564,0.00026416,2]
[385869588,1758076239617,-2000.0,0.00026416,2]
[385869589,1758076239627,-2000.0,0.00026416,2]
[385869590,1758076239638,-600.0,0.0002669,2]
[385869591,1758076239648,-997.71721571,0.00026964,2]
[385869592,1758076239657,-2500.0,0.00026964,2]
[385869593,1758076239666,-172.14,0.00026998,2]
[385869594,1758076239675,-557.0,0.00027137,2]
[385869595,1758076239684,-554.0,0.00027137,2]
[385869596,1758076239693,-156.38462727,0.00027397,5]
[385869597,1758076239702,-5241.99180702,0.00027459,2]
[385869598,1758076239712,-270.74604062,0.00027491,2]
[385869599,1758076239723,-2474.12170754,0.00027495,2]
[385869600,1758076239732,-1328.48154244,0.00027508,2]
[385869602,1758076239741,-3000.0,0.00027512,5]
[385869603,1758076239753,-800.0,0.00027649,5]
[385869604,1758076239766,-4000.0,0.00027769,4]
[385869605,1758076239776,-503.16465056,0.00027858,2]
[385869606,1758076239787,-250.0,0.0002786,2]
[385869607,1758076239798,-936.96812123,0.00028,20]
[385869608,1758076239807,-42089.22,0.00028,7]
[385869609,1758076239816,-3500.0,0.0002806,5]
[385869610,1758076239825,-1000.0,0.00028186,2]
[385869611,1758076239837,-1000.0,0.00028186,2]
[385869612,1758076239847,-1000.0,0.00028186,2]
[385869613,1758076239856,-1000.0,0.00028186,2]
[385869614,1758076239865,-1000.0,0.00028186,2]
[385869615,1758076239875,-1000.0,0.00028186,2]
[385869616,1758076239884,-1000.0,0.00028186,2]
[385869617,1758076239894,-1000.0,0.00028186,2]
[385869618,1758076239903,-1000.0,0.00028186,2]
[385869619,1758076239912,-1000.0,0.00028186,2]
[385869620,1758076239922,-1000.0,0.00028186,2]
[385869621,1758076239932,-1000.0,0.00028186,2]
[385869622,1758076239942,-1000.0,0.00028186,2]
[385869623,1758076239952,-1000.0,0.00028186,2]
[385869624,1758076239962,-1000.0,0.00028186,2]
[385869625,1758076239971,-1000.0,0.00028186,2]
[385869626,1758076239980,-1000.0,0.00028186,2]
[385869627,1758076239990,-1000.0,0.00028186,2]
[385869628,1758076239999,-1000.0,0.00028186,2]
[385869629,1758076240008,-1000.0,0.00028186,2]
[385869630,1758076240018,-1000.0,0.00028186,2]
[385869631,1758076240028,-1000.0,0.00028186,2]
[385869632,1758076240039,-1000.0,0.00028186,2]
[385869633,1758076240048,-1000.0,0.00028186,2]
[385869634,1758076240057,-1000.0,0.00028186,2]
[385869635,1758076240067,-1000.0,0.00028186,2]
[385869636,1758076240077,-1000.0,0.00028186,2]
[385869637,1758076240087,-1000.0,0.00028186,2]
[385869638,1758076240097,-1000.0,0.00028186,2]
[385869639,1758076240108,-1000.0,0.00028186,2]
[385869640,1758076240119,-1000.0,0.00028186,2]
[385869641,1758076240129,-1000.0,0.00028186,2]
[385869642,1758076240139,-1000.0,0.00028186,2]
[385869643,1758076240148,-1000.0,0.00028186,2]
[385869644,1758076240159,-1000.0,0.00028186,2]
[385869645,1758076240168,-1000.0,0.00028186,2]
[385869646,1758076240178,-1000.0,0.00028186,2]
[385869647,1758076240187,-1000.0,0.00028186,2]
[385869648,1758076240197,-1000.0,0.00028186,2]
[385869649,1758076240207,-1000.0,0.00028186,2]
[385869650,1758076240216,-1000.0,0.00028186,2]
[385869651,1758076240227,-1000.0,0.00028186,2]
[385869652,1758076240237,-1000.0,0.00028186,2]
[385869653,1758076240247,-1000.0,0.00028186,2]
[385869654,1758076240257,-1000.0,0.00028186,2]
[385869655,1758076240269,-1000.0,0.00028186,2]
[385869656,1758076240278,-1000.0,0.00028186,2]
[385869657,1758076240289,-1000.0,0.00028186,2]
[385869658,1758076240298,-238.0,0.00028186,2]
[385869659,1758076240307,-151.0,0.00028186,2]
[385869660,1758076240316,-151.0,0.00028186,2]
[385869662,1758076240326,-600.0,0.00028186,2]
[385869664,1758076240336,-151.0,0.00028186,2]
[385869666,1758076240345,-518.46513606,0.00028186,2]
[385869668,1758076240355,-151.0,0.00028186,2]
[385869670,1758076240364,-151.0,0.00028186,2]
[385869672,1758076240374,-151.0,0.00028186,2]
[385869673,1758076240383,-151.0,0.00028186,2]
[385869675,1758076240392,-151.0,0.00028186,2]
[385869676,1758076240401,-151.0,0.00028186,2]
[385869677,1758076240410,-151.0,0.00028186,2]
[385869678,1758076240420,-151.0,0.00028186,2]
[385869679,1758076240429,-151.0,0.00028186,2]
[385869680,1758076240439,-210.00672626,0.00028186,2]
[385869681,1758076240449,-200.0,0.00028186,2]
[385869682,1758076240458,-151.0,0.00028193,7]
[385869683,1758076240468,-151.0,0.00028193,7]
[385869684,1758076240477,-151.0,0.00028193,7]
[385869686,1758076240486,-151.0,0.00028193,7]
[385869688,1758076240496,-151.0,0.00028193,7]
[385869689,1758076240505,-151.0,0.00028193,7]
[385869691,1758076240514,-151.0,0.00028193,7]